bitfinex-derivatives/quotes_ETHF0:USTF0_20250410
["timestamp","ask_amount","ask_price","bid_price","bid_amount"]
[1744312747553,1.31846,1517.8,1517.7,1.32841589]
[1744312748143,5.22603,1517.9,1517.8,1.31846]
[1744312748345,1.3182,1518.1,1518.0,1.31827]
[1744312748544,3.2078,1518.2,1517.8,3.29599]
[1744312748739,3.2955,1518.1,1517.7,4.03127589]
[1744312748936,6.50309,1518.2,1517.7,7.32761589]
[1744312749141,1.31846,1517.8,1517.7,1.32833589]
[1744312749342,1.31845,1517.9,1517.8,1.31844]
[1744312749535,1.31824,1518.1,1518.0,1.31824]
[1744312749737,3.23657,1518.3,1518.2,1.31811]
[1744312750348,1.31805,1518.3,1518.0,6.50332]
[1744312750649,10.78396992,1518.4,1518.0,6.5035]
[1744312750841,12.10195992,1518.4,1518.3,1.31802]
[1744312751046,1.31803,1518.3,1518.2,1.31805]
[1744312751246,4.52577,1518.4,1518.2,1.31805]
[1744312751448,10.79384581,1518.6,1518.3,1.31802]
[1744312751649,7.58604581,1518.6,1518.5,1.31785]
[1744312753645,7.58604581,1518.6,1518.5,6.98085]
[1744312754249,7.58604581,1518.6,1518.5,11.98085]
[1744312754463,0.00987589,1518.6,1518.5,17.97285]
[1744312755655,10.78396992,1519.1,1519.0,1.31741]
[1744312755855,7.57616992,1519.1,1519.0,1.31741]
[1744312756447,12.57616992,1519.1,1518.8,5.662]
[1744312756654,1.31756,1518.9,1518.8,0.00987589]
[1744312756856,1.31756,1518.9,1518.8,1.32746589]
[1744312757245,3.32819,1519.0,1518.9,1.3175]
[1744312757543,1.3175,1518.9,1518.8,0.00987589]
[1744312757750,6.5608,1518.9,1518.8,0.00987589]
[1744312758255,11.5608,1518.9,1518.8,0.00987589]
[1744312758752,6.5608,1518.9,1518.8,0.00987589]
[1744312758949,2.0355,1518.9,1518.8,1.32746589]
[1744312759149,7.58604581,1519.1,1519.0,1.31741]
[1744312759453,0.00987589,1519.1,1519.0,1.31741]
[1744312759753,5.89e-06,1519.1,1519.0,8.90331]
[1744312761053,5.89e-06,1519.1,1519.0,10.81571]
[1744312761746,5.89e-06,1519.1,1519.0,6.97841]
[1744312762057,5.89e-06,1519.1,1519.0,9.06251]
[1744312762457,5.89e-06,1519.1,1519.0,14.06251]
[1744312762652,5.89e-06,1519.1,1519.0,20.05451]
[1744312762853,5.15025824,1519.4,1519.3,1.31715]
[1744312763052,5.15025824,1519.4,1519.3,10.18095]
[1744312763558,8.40830824,1519.8,1519.6,1.31684]
[1744312764557,8.40831824,1519.8,1519.6,1.31684]
[1744312764757,7.09155824,1519.8,1519.7,1.31681]
[1744312764954,5.15025824,1519.8,1519.7,10.17961]
[1744312765552,5.15025824,1519.8,1519.7,12.22571]
[1744312766457,7.57616992,1520.0,1519.9,1.31663]
[1744312766761,9.0401775,1520.1,1520.0,1.31655]
[1744312766953,6.57377769,1520.3,1520.2,1.31637]
[1744312767158,6.57377769,1520.3,1520.2,4.52417]
[1744312767653,6.57377769,1520.3,1520.2,6.63907]
[1744312767859,5.1156,1520.6,1520.2,3.2078]
[1744312768060,5.1156,1520.6,1520.4,1.31616]
[1744312768264,5.1156,1520.6,1520.3,2.1149]
[1744312768455,6.43164,1520.6,1520.4,1.31614]
[1744312768652,5.1156,1520.6,1520.5,1.31611]
[1744312768953,1.9078,1520.6,1520.4,1.31613]
[1744312769157,1.9078,1520.6,1520.5,1.31611]
[1744312769554,3.22389,1520.6,1520.4,1.32604589]
[1744312769755,1.9078,1520.6,1520.5,1.31611]
[1744312769955,6.9078,1520.6,1520.4,0.00987589]
[1744312770155,1.9078,1520.6,1520.4,0.00987589]
[1744312770355,1.31611,1520.5,1520.4,1.32605589]
[1744312770659,6.4317,1520.6,1520.4,1.32602589]
[1744312770964,1.31611,1520.5,1520.4,0.00987589]
[1744312771163,3.30251,1520.5,1520.4,0.00987589]
[1744312771355,8.30251,1520.5,1520.4,0.00987589]
[1744312772461,1.31644,1520.2,1519.8,3.2078]
[1744312772654,3.38192,1520.1,1519.9,1.31661]
[1744312773054,3.38192,1520.1,1520.0,1.31655]
[1744312773356,2.1619,1520.2,1520.1,1.31646]
[1744312773557,4.2273,1520.2,1520.1,3.40366]
[1744312773849,2.0654,1520.2,1520.1,3.40366]
[1744312774165,0.00987589,1520.3,1520.2,1.31637]
[1744312774362,0.00987589,1520.3,1520.2,6.61137]
[1744312775965,0.00987589,1520.3,1520.2,3.40357]
[1744312776362,0.00987589,1520.3,1520.2,1.31637]
[1744312776977,1.32616589,1520.3,1520.2,1.31637]
[1744312777267,0.00987589,1520.3,1520.2,1.31637]
[1744312777460,2.19767589,1520.3,1520.2,1.31637]
[1744312778870,5.89e-06,1520.3,1520.2,9.52417]
[1744312779062,5.89e-06,1520.3,1520.2,11.57027]
[1744312780269,5.89e-06,1520.3,1520.2,6.57027]
[1744312780471,5.89e-06,1520.3,1520.2,3.36247]
[1744312781168,5.89e-06,1520.3,1520.2,1.31637]
[1744312781565,2.09450589,1520.3,1520.2,1.31637]
[1744312782071,3.41079589,1520.3,1520.2,1.31637]
[1744312782271,2.09450589,1520.3,1520.2,1.31637]
[1744312783972,5.30230589,1520.3,1520.2,1.31637]
[1744312784466,6.61872589,1520.3,1520.2,1.31637]
[1744312784968,5.30230589,1520.3,1520.2,1.31637]
[1744312785169,2.09450589,1520.3,1520.2,1.31637]
[1744312785369,5.89e-06,1520.3,1520.2,1.31637]
[1744312786169,2.18050589,1520.3,1520.2,1.31637]
[1744312786373,5.38830589,1520.3,1520.2,1.31637]
[1744312787176,5.38830589,1520.3,1520.2,1.31651]
[1744312787477,3.20780589,1520.3,1520.2,1.31651]
[1744312787881,5.25900589,1520.3,1520.1,1.31652]
[1744312788182,5.25900589,1520.3,1520.2,1.31651]
[1744312788365,1.31659,1520.1,1520.0,0.00987589]
[1744312788571,4.52439,1520.1,1520.0,0.00987589]
[1744312788866,1.31677,1519.9,1519.7,1.31688]
[1744312789176,2.0512,1519.8,1519.7,1.31688]
[1744312790073,2.0512,1519.8,1519.6,1.32683589]
[1744312790276,4.52474,1519.7,1519.6,0.00987589]
[1744312790781,11.56674,1519.7,1519.6,0.00987589]
[1744312790967,1.31706,1519.6,1519.4,1.31712]
[1744312791164,8.76001,1519.5,1519.4,1.31712]
[1744312791374,7.4429,1519.5,1519.3,1.31723]
[1744312791564,8.76007,1519.5,1519.3,1.31723]
[1744312791965,7.4429,1519.5,1519.2,1.31734]
[1744312792272,1.3172,1519.4,1519.2,1.32723589]
[1744312792471,2.042,1519.3,1519.2,1.32723589]
[1744312792775,3.21767589,1519.6,1519.5,1.31711]
[1744312792978,4.53475589,1519.6,1519.4,1.31712]
[1744312793278,2.042,1519.5,1519.4,1.31712]
[1744312794265,3.21767589,1519.6,1519.5,1.31711]
[1744312795477,0.00987589,1519.6,1519.5,1.31711]
[1744312796273,0.00987589,1519.6,1519.5,4.52491]
[1744312796466,0.00987589,1519.6,1519.5,9.52491]
[1744312796669,0.00987589,1519.6,1519.5,1.31711]
[1744312797879,0.00987589,1519.6,1519.5,6.31711]
[1744312798472,0.00987589,1519.6,1519.5,1.31711]
[1744312800176,5.89e-06,1519.6,1519.5,6.31711]
[1744312800384,5.89e-06,1519.6,1519.5,9.52491]
[1744312800977,5.89e-06,1519.6,1519.5,1.31711]
[1744312801479,1.31717,1519.5,1519.4,1.31719]
[1744312801780,3.2078,1519.5,1519.2,1.32722589]
[1744312801976,4.52509,1519.3,1519.2,0.00987589]
[1744312802479,9.52509,1519.3,1519.2,0.00987589]
[1744312802782,6.61279,1519.3,1519.2,0.00987589]
[1744312803080,5.2955,1519.3,1519.2,1.32724589]
[1744312804484,3.2078,1519.3,1519.2,1.32724589]
[1744312805879,3.2078,1519.3,1519.2,11.97624589]
[1744312806081,3.2078,1519.3,1519.2,6.97624589]
[1744312806286,3.2078,1519.4,1519.3,1.31729]
[1744312807187,4.26090589,1519.6,1519.5,1.31711]
[1744312807378,7.46870589,1519.6,1519.5,1.31711]
[1744312807682,8.78573589,1519.6,1519.5,1.31711]
[1744312807887,1.31711,1519.5,1519.4,1.31713]
[1744312808187,2.1437,1519.5,1519.4,1.31713]
[1744312808380,5.89e-06,1519.6,1519.5,1.31711]
[1744312808586,5.89e-06,1519.6,1519.5,6.96611]
[1744312808786,5.89e-06,1519.6,1519.5,17.24501]
[1744312810589,5.3283,1520.2,1520.1,1.31659]
[1744312810978,2.1205,1520.2,1520.1,1.31659]
[1744312811289,10.2312657,1520.3,1520.2,1.31651]
[1744312812082,10.2312657,1520.3,1520.2,3.33011]
[1744312812984,10.2312657,1520.3,1520.1,0.00987589]
[1744312813285,4.52431,1520.2,1520.1,0.00987589]
[1744312813487,6.50841,1520.2,1520.1,0.00987589]
[1744312813789,11.50841,1520.2,1520.1,0.00987589]
[1744312813995,11.50841,1520.2,1520.1,1.32646589]
[1744312814182,5.1919,1520.2,1520.1,0.00987589]
[1744312814385,11.50841,1520.2,1520.1,0.00987589]
[1744312814885,1.31689,1519.8,1519.6,1.31695]
[1744312815090,2.1097,1519.7,1519.6,1.31703]
[1744312815592,3.2078,1519.7,1519.6,1.31703]
[1744312815791,3.2078,1520.0,1519.7,4.6093]
[1744312816082,3.2078,1520.0,1519.8,1.31685]
[1744312816083,2.1097,1519.9,1519.8,1.31685]
[1744312816486,3.2078,1520.0,1519.9,1.31677]
[1744312816887,5.3175,1520.2,1520.1,1.31659]
[1744312817283,11.63401,1520.2,1519.9,1.31677]
[1744312817485,3.2078,1520.0,1519.9,1.31677]
[1744312817685,5.3175,1520.2,1520.1,1.31659]
[1744312818479,3.2078,1520.2,1520.1,1.31659]
[1744312818691,2.051,1520.3,1520.2,1.31651]
[1744312819085,2.051,1520.3,1519.9,13.85896]
[1744312819086,1.31651,1520.2,1520.1,3.45347]
[1744312819285,4.52431,1520.2,1520.0,1.31662]
[1744312819488,2.1486,1520.1,1520.0,1.31662]
[1744312819790,3.46524,1520.1,1519.9,4.1069]
[1744312819990,3.2078,1520.0,1519.9,1.31673]
[1744312820189,5.3564,1520.0,1519.9,1.31677]
[1744312820985,3.2078,1520.0,1519.9,3.45367]
[1744312822491,5.2514,1520.2,1520.1,1.31659]
[1744312822797,2.051,1520.3,1520.2,1.31651]
[1744312823387,4.0946,1520.3,1520.2,1.31651]
[1744312823788,3.21767589,1520.4,1520.3,1.31642]
[1744312823988,0.00987589,1520.4,1520.3,6.96042]
[1744312824290,0.00987589,1520.4,1520.3,11.96042]
[1744312824488,0.00987589,1520.4,1520.3,1.31642]
[1744312825297,0.00987589,1520.4,1520.3,6.96042]
[1744312825494,0.00987589,1520.4,1520.3,9.00862]
[1744312825792,0.00987589,1520.4,1520.3,3.36462]
[1744312825996,2.04997589,1520.4,1520.3,3.36462]
[1744312826398,3.36630589,1520.4,1520.3,1.31642]
[1744312826598,1.31647,1520.3,1519.9,109.29088]
[1744312826896,5.2479,1520.2,1520.1,1.31659]
[1744312827197,6.56441,1520.2,1520.1,1.31659]
[1744312827698,11.56441,1520.2,1520.0,1.31662]
[1744312828005,11.56441,1520.2,1519.7,1.9943]
[1744312828006,1.31678,1519.9,1519.7,1.31686]
[1744312828198,9.5141,1519.8,1519.5,10.26172281]
[1744312828498,3.2078,1519.6,1519.5,11.57876281]
[1744312828793,4.52483,1519.6,1519.5,10.26172281]
[1744312828986,3.2078,1519.6,1519.5,11.57883281]
[1744312829189,3.2078,1519.6,1519.5,1.32698589]
[1744312829894,5.2797,1519.6,1519.5,1.32698589]
[1744312831487,11.59673,1519.6,1519.5,0.00987589]
[1744312832200,1.31711,1519.5,1519.4,10.25184692]
[1744312832401,2.0697,1519.5,1519.4,11.56904692]
[1744312833002,2.0697,1519.5,1519.4,1.3172]
[1744312834299,3.21767589,1519.6,1519.5,1.31711]
[1744312834905,3.21767589,1519.6,1519.5,11.96211]
[1744312835105,0.00987589,1519.6,1519.5,11.96211]
[1744312835404,0.00987589,1519.6,1519.5,14.24091]
[1744312836105,5.89e-06,1519.6,1519.5,14.24091]
[1744312836306,5.89e-06,1519.6,1519.5,15.98941]
[1744312836708,5.89e-06,1519.6,1519.5,21.98141]
[1744312837903,7.71742358,1520.3,1520.2,1.31651]
[1744312838510,7.71742358,1520.3,1520.2,3.53201]
[1744312839595,9.80522358,1520.3,1520.2,3.53201]
[1744312840101,9.80522358,1520.3,1520.2,1.31651]
[1744312841199,7.71742358,1520.3,1520.2,3.41041]
[1744312841406,1.31651,1520.2,1520.1,0.00987589]
[1744312841603,8.88181,1520.2,1520.1,1.32646589]
[1744312841805,13.88181,1520.2,1520.1,0.00987589]
[1744312842303,13.88181,1520.2,1519.6,19.18831692]
[1744312842304,15.85674,1520.2,1519.6,19.18831692]
[1744312842508,3.2078,1519.8,1519.7,1.31694]
[1744312842811,3.2078,1519.8,1519.6,11.56883692]
[1744312843113,3.41824,1519.7,1519.6,10.25184692]
[1744312843309,5.52034,1519.7,1519.6,10.25184692]
[1744312843505,10.52034,1519.7,1519.6,10.25184692]
[1744312843810,4.2034,1519.7,1519.6,11.56887692]
[1744312844011,2.1013,1519.7,1519.6,11.56887692]
[1744312844202,3.2078,1519.8,1519.7,1.31694]
[1744312844402,3.2078,1519.8,1519.7,3.54344]
[1744312845010,3.2078,1519.8,1519.7,2.2265]
[1744312845209,3.2078,1519.8,1519.7,1.31694]
[1744312845903,2.1013,1519.9,1519.8,1.31685]
[1744312847208,3.2078,1520.0,1519.9,1.31677]
[1744312847413,3.2078,1520.0,1519.9,14.17807]
[1744312847615,3.2078,1520.0,1519.9,9.17807]
[1744312848316,2.1942,1520.2,1520.1,1.31659]
[1744312848901,7.71742358,1520.3,1520.2,1.31651]
[1744312850014,14.35104358,1520.3,1520.2,1.31651]
[1744312850410,6.63362,1520.3,1520.2,1.31651]
[1744312850615,5.3172,1520.3,1520.2,1.31651]
[1744312851213,6.63362,1520.3,1520.2,1.31651]
[1744312851612,5.3172,1520.3,1519.9,14.92791]
[1744312851815,1.31651,1520.2,1520.1,1.31652]
[1744312852116,2.2386,1520.2,1520.1,1.31652]
[1744312854018,0.00987589,1520.4,1520.3,1.31642]
[1744312854221,0.00987589,1520.4,1520.3,6.95642]
[1744312854412,5.89e-06,1520.4,1520.3,11.95642]
[1744312854611,5.89e-06,1520.4,1520.3,14.18982]
[1744312855117,5.89e-06,1520.4,1520.3,14.71014807]
[1744312856023,5.89e-06,1520.4,1520.3,6.95642]
[1744312856524,2.25510589,1520.4,1520.3,1.31642]
[1744312856727,6.77923589,1520.4,1520.2,3.38134]
[1744312857023,6.77923589,1520.4,1520.3,1.31642]
[1744312857221,1.31642,1520.3,1520.2,1.31645]
[1744312857415,3.57152,1520.3,1520.2,1.31651]
[1744312857614,3.57152,1520.3,1520.1,8.2639]
[1744312857815,3.57152,1520.3,1520.1,9.58049]
[1744312857816,3.2078,1520.2,1520.1,9.58049]
[1744312858120,2.2551,1520.3,1520.2,1.31651]
[1744312860334,5.89e-06,1520.4,1520.3,1.31642]
[1744312860526,5.28280589,1520.4,1520.3,1.31642]
[1744312861229,6.59913589,1520.4,1520.1,3.29129]
[1744312861421,3.2078,1520.2,1520.1,1.31659]
[1744312862137,5.2828,1520.2,1520.1,1.31659]
[1744312862423,3.2078,1520.2,1520.1,3.58709]
[1744312863024,4.3477,1520.3,1520.2,1.31651]
[1744312863326,2.075,1520.3,1520.2,3.58701]
[1744312863529,5.89e-06,1520.4,1520.3,1.31642]
[1744312863724,5.89e-06,1520.4,1520.3,21.15522]
[1744312863929,13.00262358,1520.8,1520.7,1.31607]
[1744312864227,7.71742358,1520.8,1520.7,1.31607]
[1744312864626,7.71742358,1520.8,1520.7,3.49087]
[1744312865617,7.71742358,1520.8,1520.7,1.31607]
[1744312865818,2.08727589,1520.9,1520.8,1.31599]
[1744312866726,8.40317589,1520.9,1520.8,1.31599]
[1744312866913,7.08727589,1520.9,1520.8,1.31599]
[1744312867112,2.08727589,1520.9,1520.6,0.00987589]
[1744312867323,4.52387,1520.7,1520.6,0.00987589]
[1744312867729,9.52387,1520.7,1520.6,0.00987589]
[1744312868115,3.2078,1520.7,1520.6,1.32603589]
[1744312868312,2.08727589,1520.9,1520.6,1.32603589]
[1744312868520,5.29507589,1520.9,1520.8,1.31599]
[1744312870928,2.08727589,1520.9,1520.8,1.31599]
[1744312871321,6.61097589,1520.9,1520.6,1.32603589]
[1744312871525,6.61097589,1520.9,1520.6,3.56493589]
[1744312871728,6.61103589,1520.9,1520.8,1.31599]
[1744312871923,6.61101589,1520.9,1520.8,1.31599]
[1744312872730,5.29507589,1520.9,1520.8,1.31599]
[1744312872924,6.61097589,1520.9,1520.8,1.31599]
[1744312873330,5.29507589,1520.9,1520.8,1.31599]
[1744312873526,5.29507589,1520.9,1520.7,1.31599]
[1744312873731,6.61101589,1520.9,1520.8,1.31599]
[1744312873931,6.61105589,1520.9,1520.6,5.53915589]
[1744312874228,1.31604,1520.8,1520.7,1.31599]
[1744312874423,1.31607,1520.7,1520.6,0.00987589]
[1744312874829,1.31633,1520.4,1520.3,1.31635]
[1744312875025,3.2078,1520.6,1520.5,1.31625]
[1744312875332,3.2078,1520.8,1520.7,1.31607]
[1744312876630,5.314,1520.8,1520.7,1.31607]
[1744312877533,1.31607,1520.7,1520.6,0.00987589]
[1744312877835,3.42227,1520.7,1520.6,0.00987589]
[1744312878036,4.2428,1520.7,1520.6,1.32603589]
[1744312879532,5.55887,1520.7,1520.6,0.00987589]
[1744312880739,10.55887,1520.7,1520.6,0.00987589]
[1744312882133,3.19792411,1520.6,1519.9,10.25184692]
[1744312882332,3.2078,1520.0,1519.9,10.25184692]
[1744312882533,4.52448,1520.0,1519.9,11.56861692]
[1744312882733,4.52448,1520.0,1519.9,10.25184692]
[1744312883336,6.62288,1520.0,1519.9,10.25184692]
[1744312883538,5.3062,1520.0,1519.9,11.56861692]
[1744312884532,6.53577589,1520.1,1520.0,1.31668]
[1744312884731,0.00987589,1520.1,1520.0,3.43508]
[1744312884930,0.00987589,1520.1,1520.0,8.43508]
[1744312885735,3.21767589,1520.1,1519.9,10.25184692]
[1744312885939,3.21767589,1520.1,1520.0,1.31668]
[1744312886131,1.31668,1520.0,1519.8,6.00187589]
[1744312886330,3.21767589,1520.1,1520.0,1.31668]
[1744312886331,5.50537589,1520.1,1520.0,1.31668]
[1744312886541,5.50537589,1520.1,1519.9,3.43512]
[1744312886729,2.2765,1520.0,1519.9,3.43512]
[1744312886931,3.59318,1520.0,1519.9,3.43512]
[1744312887440,3.59321,1520.0,1519.9,1.31677]
[1744312887637,2.2765,1520.0,1519.8,9.43707589]
[1744312887837,1.31677,1519.9,1519.8,9.43707589]
[1744312888143,1.31677,1519.9,1519.8,2.12827589]
[1744312888441,4.52457,1519.9,1519.8,2.12827589]
[1744312888640,4.52457,1519.9,1519.8,3.44512589]
[1744312888842,0.00987589,1520.1,1520.0,1.31668]
[1744312889546,0.00987589,1520.1,1519.9,3.61571]
[1744312889734,0.00987589,1520.1,1520.0,2.299]
[1744312890042,0.00987589,1520.1,1520.0,3.61568]
[1744312890346,3.43386589,1520.1,1520.0,3.61568]
[1744312890634,2.11727589,1520.1,1520.0,3.61568]
[1744312891433,0.00987589,1520.1,1520.0,3.61568]
[1744312892436,2.15807589,1520.1,1520.0,3.61568]
[1744312892840,3.47466589,1520.1,1520.0,3.61568]
[1744312893038,1.31677,1519.9,1519.8,0.00987589]
[1744312893232,4.52457,1519.9,1519.8,0.00987589]
[1744312893736,6.67277,1519.9,1519.8,0.00987589]
[1744312894043,3.2078,1519.9,1519.8,1.32672589]
[1744312894543,4.52457,1519.9,1519.8,1.32672589]
[1744312894844,5.4649,1519.9,1519.8,1.32672589]
[1744312895541,4.52457,1519.9,1519.8,0.00987589]
[1744312895742,6.78167,1519.9,1519.8,0.00987589]
[1744312896537,5.4649,1519.9,1519.8,0.00987589]
[1744312896740,5.4649,1519.9,1519.8,1.32672589]
[1744312896941,3.2078,1519.9,1519.8,1.32672589]
[1744312897736,5.36047589,1520.1,1520.0,1.31668]
[1744312898044,3.21767589,1520.1,1520.0,6.95168]
[1744312898230,3.21767589,1520.1,1520.0,9.08088]
[1744312898745,3.21767589,1520.1,1520.0,14.08088]
[1744312898940,3.21767589,1520.1,1520.0,9.08088]
[1744312899743,5.51917589,1520.1,1520.0,9.08088]
[1744312900345,3.21767589,1520.1,1519.8,8.22387589]
[1744312900646,2.2327,1520.0,1519.9,1.31673]
[1744312900846,2.2327,1520.0,1519.9,3.45023]
[1744312901343,1.31677,1519.9,1519.8,1.32669589]
[1744312901643,6.79657,1519.9,1519.8,0.00987589]
[1744312901843,1.31695,1519.7,1519.6,1.31698]
[1744312902047,4.52474,1519.7,1519.6,1.31698]
[1744312902248,2.2327,1519.8,1519.7,1.31694]
[1744312902443,5.4798,1519.9,1519.8,1.31685]
[1744312902644,3.2078,1519.9,1519.8,1.31685]
[1744312903248,3.21767589,1520.1,1520.0,1.31668]
[1744312903744,3.21767589,1520.1,1520.0,6.31668]
[1744312903941,0.00987589,1520.1,1520.0,8.48478]
[1744312904141,0.00987589,1520.1,1520.0,13.77668]
[1744312904341,5.89e-06,1520.1,1520.0,19.76868]
[1744312905039,5.89e-06,1520.1,1520.0,14.76868]
[1744312905240,5.89e-06,1520.1,1520.0,11.56088]
[1744312905446,5.89e-06,1520.1,1520.0,16.56088]
[1744312906440,6.00483947,1520.4,1520.3,1.31642]
[1744312906745,4.36871947,1520.4,1520.3,6.95142]
[1744312906952,4.36871947,1520.4,1520.3,11.95142]
[1744312907148,4.36871947,1520.4,1520.3,13.79652]
[1744312907351,4.36871947,1520.4,1520.3,8.79652]
[1744312907947,4.36871947,1520.4,1520.3,6.95142]
[1744312908145,1.31642,1520.3,1520.2,2.2781]
[1744312908345,3.51996,1520.3,1520.1,1.31654]
[1744312908653,3.2078,1520.2,1520.1,1.31654]
[1744312909148,2.2676,1520.2,1520.1,1.31654]
[1744312909346,5.314,1520.4,1520.0,10.0802]
[1744312909550,4.3738,1520.4,1520.3,1.31642]
[1744312910155,5.49057589,1520.5,1520.4,1.31633]
[1744312910156,3.21767589,1520.5,1520.4,1.31633]
[1744312910950,3.21767589,1520.5,1520.4,3.42003]
[1744312911251,0.00987589,1520.5,1520.4,3.42003]
[1744312912456,5.89e-06,1520.5,1520.4,10.59443]
[1744312913460,5.89e-06,1520.5,1520.4,5.59443]
[1744312914354,5.89e-06,1520.5,1520.4,10.59443]
[1744312914858,5.89e-06,1520.5,1520.4,16.58643]
[1744312915960,5.89e-06,1520.5,1520.4,11.58643]
[1744312916857,8.20780589,1520.5,1520.4,1.31633]
[1744312917057,5.89e-06,1520.5,1520.4,1.31633]
[1744312917257,5.89e-06,1520.5,1520.3,1.31636]
[1744312917258,8.20780589,1520.5,1520.3,1.31636]
[1744312917455,4.52407589,1520.5,1520.4,1.31633]
[1744312917650,1.31633,1520.4,1520.3,1.31636]
[1744312917957,3.40679,1520.4,1520.1,3.29147]
[1744312918154,3.40679,1520.4,1520.2,1.31644]
[1744312918155,5.4438,1520.3,1520.2,1.31644]
[1744312918356,7.5494,1520.3,1520.2,1.31644]
[1744312918653,5.89e-06,1520.5,1520.4,1.31633]
[1744312918854,2.10560589,1520.5,1520.4,1.31633]
[1744312919756,2.10560589,1520.5,1520.4,3.55993]
[1744312919956,5.89e-06,1520.5,1520.4,3.55993]
[1744312922559,5.89e-06,1520.5,1520.4,6.76773]
[1744312922766,5.89e-06,1520.5,1520.4,11.76773]
[1744312923062,5.89e-06,1520.5,1520.4,17.75973]
[1744312923262,10.2312657,1521.0,1520.9,1.3159]
[1744312923463,10.2312657,1521.0,1520.9,6.9439]
[1744312923663,5.3078,1521.1,1521.0,1.31581]
[1744312924668,5.3078,1521.1,1521.0,3.48301]
[1744312924966,10.3078,1521.1,1520.9,1.32575589]
[1744312925160,3.52341,1521.0,1520.9,0.00987589]
[1744312925361,2.2076,1521.0,1520.6,5.628]
[1744312925564,4.52379,1520.8,1520.7,1.31606]
[1744312925768,4.52379,1520.8,1520.5,3.29062]
[1744312925967,1.31609,1520.7,1520.6,1.31612]
[1744312926463,1.31609,1520.7,1520.6,1.31615]
[1744312927075,4.52383,1520.8,1520.6,1.31615]
[1744312927269,1.31616,1520.6,1520.5,0.00987589]
[1744312927469,4.52396,1520.6,1520.5,0.00987589]
[1744312927667,9.52396,1520.6,1520.5,0.00987589]
[1744312927875,1.3165,1520.3,1520.1,10.25184692]
[1744312928067,3.2078,1520.6,1520.3,4.60743]
[1744312928267,3.2078,1520.6,1520.2,10.99989]
[1744312928570,3.2078,1520.6,1520.5,1.31621]
[1744312929571,0.00987589,1520.7,1520.6,1.31616]
[1744312930166,0.00987589,1520.7,1520.6,3.39696]
[1744312930367,0.00987589,1520.7,1520.6,1.31616]
[1744312930772,0.00987589,1520.7,1520.6,3.45216]
[1744312931974,1.31625,1520.5,1520.4,0.00987589]
[1744312932173,6.49856,1520.5,1519.8,15.63609692]
[1744312932378,4.52435,1520.2,1520.0,1.31662]
[1744312932568,1.31672,1520.0,1519.8,13.70466692]
[1744312932768,1.31677,1519.9,1519.8,10.25184692]
[1744312932975,3.55957,1519.9,1519.8,6.78734692]
[1744312933174,1.31685,1519.8,1519.7,15.21276001]
[1744312933375,4.52465,1519.8,1519.7,9.88533807]
[1744312933580,9.52465,1519.8,1519.7,9.88533807]
[1744312934281,9.52465,1519.8,1519.7,0.00657805]
[1744312934774,9.52465,1519.8,1519.7,8.05e-06]
[1744312935076,1.3172,1519.4,1519.3,20.51093872]
[1744312935283,3.2078,1519.4,1519.3,21.82822872]
[1744312935484,3.2078,1519.6,1519.5,1.31705]
[1744312935981,8.2078,1519.6,1519.3,20.51093872]
[1744312936276,4.525,1519.4,1519.3,20.51093872]
[1744312936473,3.2078,1519.4,1519.3,21.82822872]
[1744312937088,4.525,1519.4,1519.3,20.51093872]
[1744312937270,5.3143,1519.4,1519.3,21.82822872]
[1744312938170,2.1065,1519.4,1519.3,21.82822872]
[1744312938375,9.0598,1519.8,1519.7,1.31694]
[1744312938376,5.2949,1519.8,1519.7,1.31694]
[1744312938582,12.54312359,1519.8,1519.7,1.31694]
[1744312939178,17.54312359,1519.8,1519.3,3.29318]
[1744312939382,2.2207,1519.7,1519.6,1.317]
[1744312939687,2.2591,1519.7,1519.6,1.317]
[1744312939885,5.14172359,1519.8,1519.7,1.31694]
[1744312940086,5.14172359,1519.8,1519.7,3.50714]
[1744312941385,5.14172359,1519.8,1519.7,8.50714]
[1744312941772,5.14172359,1519.8,1519.7,3.50714]
[1744312942378,0.00987589,1519.9,1519.8,1.31685]
[1744312943282,0.00987589,1519.9,1519.8,6.31685]
[1744312943482,0.00987589,1519.9,1519.8,1.31685]
[1744312943980,0.00987589,1519.9,1519.8,4.52465]
[1744312944684,0.00987589,1519.9,1519.8,6.31685]
[1744312944890,0.00987589,1519.9,1519.8,1.31685]
[1744312945285,3.21767589,1519.9,1519.6,9.16509]
[1744312945488,2.2332,1519.8,1519.7,1.31694]
[1744312945689,2.2332,1519.8,1519.6,1.31697]
[1744312945993,1.31707,1519.6,1519.4,1.31718]
[1744312946188,3.2078,1519.5,1519.4,1.31718]
[1744312946389,5.441,1519.5,1519.4,1.31718]
[1744312946588,6.75813,1519.5,1519.3,3.43811]
[1744312946886,5.441,1519.5,1519.3,1.31722]
[1744312947087,6.75814,1519.5,1519.3,1.31722]
[1744312947290,6.75814,1519.5,1519.2,2.1209]
[1744312947490,5.441,1519.5,1519.4,1.3172]
[1744312947793,6.75811,1519.5,1519.3,1.31725]
[1744312948095,6.75818,1519.5,1519.2,2.1209]
[1744312948281,5.441,1519.5,1519.2,2.1209]
[1744312948486,2.2332,1519.5,1519.4,1.3172]
[1744312949181,5.3256,1519.7,1519.6,1.31703]
[1744312949386,3.2078,1519.7,1519.6,1.31703]
[1744312949582,1.31706,1519.6,1519.4,2.072]
[1744312949791,4.52481,1519.7,1519.5,1.31707]
[1744312950097,4.52481,1519.7,1519.4,2.072]
[1744312950098,3.2078,1519.7,1519.6,1.31703]
[1744312950396,4.5248,1519.7,1519.6,1.31703]
[1744312950592,3.2078,1519.7,1519.4,4.1489]
[1744312950788,4.52494,1519.5,1519.4,1.31718]
[1744312950993,3.2078,1519.5,1519.4,1.31718]
[1744312951294,2.2578,1519.6,1519.2,8.66368]
[1744312951295,2.2578,1519.6,1519.5,1.31711]
[1744312951689,3.2078,1519.7,1519.6,1.31703]
[1744312952183,3.2078,1519.7,1519.1,8.0797]
[1744312952184,8.2078,1519.7,1519.2,3.2078]
[1744312952390,3.2078,1519.5,1519.4,1.3172]